fUSD/lending_fUSD_20260515
["ID","MTS","AMOUNT","RATE_DAILY","PERIOD"]
[422311802,1778812241000,-1031.52,0.00014999,2]
[422311754,1778812241000,-500.0,0.00014863,2]
[422311751,1778812241000,-500.0,0.00014863,2]
[422311752,1778812241000,-500.0,0.00014863,2]
[422311748,1778812241000,-500.0,0.00014863,2]
[422311750,1778812241000,-151.0,0.00014863,2]
[422311753,1778812241000,-500.0,0.00014863,2]
[422311757,1778812241000,-500.0,0.00014863,2]
[422311756,1778812241000,-500.0,0.00014863,2]
[422311759,1778812241000,-311.54619382,0.00014863,2]
[422311763,1778812241000,-151.0,0.00014863,2]
[422311758,1778812241000,-500.0,0.00014863,2]
[422311760,1778812241000,-500.0,0.00014863,2]
[422311761,1778812241000,-500.0,0.00014863,2]
[422311764,1778812241000,-151.0,0.00014863,2]
[422311762,1778812241000,-151.0,0.00014863,2]
[422311765,1778812241000,-151.0,0.00014863,2]
[422311794,1778812241000,-1004.05171788,0.00014999,2]
[422311755,1778812241000,-500.0,0.00014863,2]
[422311796,1778812241000,-1031.52,0.00014999,2]
[422311827,1778812241000,-500.0,0.00014999,2]
[422311838,1778812241000,-500.0,0.00014999,2]
[422311829,1778812241000,-500.0,0.00014999,2]
[422311831,1778812241000,-500.0,0.00014999,2]
[422311830,1778812241000,-500.0,0.00014999,2]
[422311835,1778812241000,-500.0,0.00014999,2]
[422311832,1778812241000,-500.0,0.00014999,2]
[422311833,1778812241000,-500.0,0.00014999,2]
[422311836,1778812241000,-634.61647136,0.00014999,2]
[422311834,1778812241000,-500.0,0.00014999,2]
[422311839,1778812241000,-500.0,0.00014999,2]
[422311842,1778812241000,-399.23550685,0.00014999,2]
[422311828,1778812241000,-500.0,0.00014999,2]
[422311840,1778812241000,-500.0,0.00014999,2]
[422311846,1778812241000,-500.0,0.00014999,2]
[422311844,1778812241000,-500.0,0.00014999,2]
[422311847,1778812241000,-500.0,0.00014999,2]
[422311843,1778812241000,-500.0,0.00014999,2]
[422311848,1778812241000,-500.0,0.00014999,2]
[422311849,1778812241000,-500.0,0.00014999,2]
[422311845,1778812241000,-500.0,0.00014999,2]
[422311851,1778812241000,-500.0,0.00014999,2]
[422311853,1778812241000,-500.0,0.00014999,2]
[422311852,1778812241000,-500.0,0.00014999,2]
[422311850,1778812241000,-500.0,0.00014999,2]
[422311798,1778812241000,-1031.52,0.00014999,2]
[422311841,1778812241000,-500.0,0.00014999,2]
[422311823,1778812241000,-500.0,0.00014999,2]
[422311837,1778812241000,-500.0,0.00014999,2]
[422311826,1778812241000,-500.0,0.00014999,2]
[422311803,1778812241000,-1031.52,0.00014999,2]
[422311820,1778812241000,-500.0,0.00014999,2]
[422311797,1778812241000,-1031.52,0.00014999,2]
[422311795,1778812241000,-1031.52,0.00014999,2]
[422311800,1778812241000,-1031.52,0.00014999,2]
[422311801,1778812241000,-1031.52,0.00014999,2]
[422311805,1778812241000,-1031.52,0.00014999,2]
[422311815,1778812241000,-1031.52,0.00014999,2]
[422311804,1778812241000,-1031.52,0.00014999,2]
[422311806,1778812241000,-1031.52,0.00014999,2]
[422311807,1778812241000,-1031.52,0.00014999,2]
[422311808,1778812241000,-1031.52,0.00014999,2]
[422311809,1778812241000,-1031.52,0.00014999,2]
[422311799,1778812241000,-1031.52,0.00014999,2]
[422311814,1778812241000,-1031.52,0.00014999,2]
[422311810,1778812241000,-1031.52,0.00014999,2]
[422311825,1778812241000,-500.0,0.00014999,2]
[422311821,1778812241000,-500.0,0.00014999,2]
[422311819,1778812241000,-500.0,0.00014999,2]
[422311824,1778812241000,-500.0,0.00014999,2]
[422311817,1778812241000,-1031.52,0.00014999,2]
[422311822,1778812241000,-500.0,0.00014999,2]
[422311818,1778812241000,-1031.65564933,0.00014999,2]
[422311811,1778812241000,-1031.52,0.00014999,2]
[422311812,1778812241000,-1031.52,0.00014999,2]
[422311813,1778812241000,-1031.52,0.00014999,2]
[422311816,1778812241000,-1031.52,0.00014999,2]
[422311868,1778812242000,-500.0,0.00014999,2]
[422311876,1778812242000,-500.0,0.00014999,2]
[422311875,1778812242000,-500.0,0.00014999,2]
[422311873,1778812242000,-500.0,0.00014999,2]
[422311884,1778812242000,-500.0,0.00014999,2]
[422311874,1778812242000,-522.18548537,0.00014999,2]
[422311869,1778812242000,-500.0,0.00014999,2]
[422311870,1778812242000,-302.42267229,0.00014999,2]
[422311871,1778812242000,-500.0,0.00014999,2]
[422311872,1778812242000,-500.0,0.00014999,2]
[422311863,1778812242000,-500.0,0.00014999,2]
[422311858,1778812242000,-500.0,0.00014999,2]
[422311866,1778812242000,-500.0,0.00014999,2]
[422311864,1778812242000,-500.0,0.00014999,2]
[422311865,1778812242000,-500.0,0.00014999,2]
[422311862,1778812242000,-468.44647641,0.00014999,2]
[422311855,1778812242000,-500.0,0.00014999,2]
[422311860,1778812242000,-500.0,0.00014999,2]
[422311859,1778812242000,-500.0,0.00014999,2]
[422311857,1778812242000,-500.0,0.00014999,2]
[422311856,1778812242000,-500.0,0.00014999,2]
[422311854,1778812242000,-500.0,0.00014999,2]
[422311861,1778812242000,-500.0,0.00014999,2]
[422311877,1778812242000,-500.0,0.00014999,2]
[422311867,1778812242000,-500.0,0.00014999,2]
[422311883,1778812242000,-500.0,0.00014999,2]
[422311885,1778812242000,-500.0,0.00014999,2]
[422311878,1778812242000,-500.0,0.00014999,2]
[422311908,1778812242000,-300.0,0.00014999,2]
[422311909,1778812242000,-853967.43858995,0.00015,2]
[422311906,1778812242000,-300.0,0.00014999,2]
[422311901,1778812242000,-500.0,0.00014999,2]
[422311905,1778812242000,-500.0,0.00014999,2]
[422311900,1778812242000,-500.0,0.00014999,2]
[422311898,1778812242000,-500.0,0.00014999,2]
[422311902,1778812242000,-500.0,0.00014999,2]
[422311904,1778812242000,-500.0,0.00014999,2]
[422311903,1778812242000,-500.0,0.00014999,2]
[422311899,1778812242000,-500.0,0.00014999,2]
[422311895,1778812242000,-500.0,0.00014999,2]
[422311907,1778812242000,-666.0,0.00014999,2]
[422311892,1778812242000,-500.0,0.00014999,2]
[422311896,1778812242000,-500.0,0.00014999,2]
[422311880,1778812242000,-500.0,0.00014999,2]
[422311879,1778812242000,-500.0,0.00014999,2]
[422311881,1778812242000,-500.0,0.00014999,2]
[422311886,1778812242000,-513.28265688,0.00014999,2]
[422311889,1778812242000,-500.0,0.00014999,2]
[422311882,1778812242000,-500.0,0.00014999,2]
[422311887,1778812242000,-500.0,0.00014999,2]
[422311893,1778812242000,-500.0,0.00014999,2]
[422311888,1778812242000,-500.0,0.00014999,2]
[422311897,1778812242000,-500.0,0.00014999,2]
[422311894,1778812242000,-500.0,0.00014999,2]
[422311891,1778812242000,-500.0,0.00014999,2]
[422311910,1778812243000,-8260.93870433,0.00015,2]
[422311912,1778812245000,-124.0197744,0.00014079,2]
[422311911,1778812245000,-500.0,0.00014079,2]
[422311914,1778812245000,-211.40680204,0.00014079,2]
[422311913,1778812245000,-375.9802256,0.00014079,2]
[422311915,1778812245000,-1823.66853164,0.00014149,2]
[422311917,1778812245000,-7612.01493064,0.00014381,2]
[422311916,1778812245000,-676.33146836,0.00014149,2]
[422311953,1778812246000,-584.65516556,0.00015,2]
[422311927,1778812246000,-14261.80338778,0.00015,2]
[422311925,1778812246000,-978.3874512,0.00015,2]
[422311923,1778812246000,-12796.6711533,0.00014485,2]
[422311924,1778812246000,-672181.4101885,0.00015,2]
[422311922,1778812246000,-4477.45623516,0.00014381,2]
[422311921,1778812246000,-707.1999875,0.00014381,2]
[422311957,1778812246000,-2754.95415744,0.00015,2]
[422311980,1778812422000,206.40997723,0.00025931,120]
[422311981,1778812510000,635.0,0.0002632,120]
[422311982,1778812533000,172.0,0.00026749,120]
[422311983,1778812575000,799.16,0.00027397,120]
[422311984,1778812607000,4464.05,0.00027397,120]
[422311985,1778813059000,157.98,6.433e-05,2]
[422311986,1778813354000,300.0,0.00027397,120]
[422311987,1778813395000,330.23005881,0.00027397,120]
[422311989,1778813431000,-657.58,0.0001242,2]
[422311991,1778813431000,-267.0,0.00012489,2]
[422311992,1778813431000,-488.9,0.00012531,2]
[422311994,1778813431000,-225.71999995,0.00012554,2]
[422311997,1778813431000,-150.0,0.00012654,2]
[422311993,1778813431000,-150.0,0.00012543,2]
[422311995,1778813431000,-0.33505968,0.00012554,2]
[422311996,1778813431000,-974.66,0.0001257,2]
[422311999,1778813431000,-1146.15659876,0.0001272,2]
[422312000,1778813431000,-853.84340124,0.0001272,2]
[422312001,1778813431000,-150.0,0.00012792,2]
[422312002,1778813431000,-453.43,0.00012824,2]
[422311990,1778813431000,-500.0,0.0001247,2]
[422312003,1778813431000,-156.84,0.00012824,2]
[422312006,1778813431000,-1778.94690425,0.00012893,2]
[422312004,1778813431000,-867.16659876,0.00012892,2]
[422312007,1778813431000,-8221.04309575,0.00012893,2]
[422312005,1778813431000,-332.83340124,0.00012892,2]
[422312008,1778813431000,-1163.35,0.00012893,2]
[422312009,1778813431000,-150.99,0.00012893,2]
[422312010,1778813431000,-22330.55,0.00012893,2]
[422312012,1778813431000,-999.99,0.00012893,2]
[422312011,1778813431000,-701.32,0.00012893,2]
[422312014,1778813431000,-900.0,0.00012893,2]
[422312013,1778813431000,-332.75690425,0.00012893,2]
[422311998,1778813431000,-150.0,0.00012667,2]
[422312023,1778813437000,-301.76454383,0.00012893,2]
[422312024,1778813437000,-796.9509005,0.00012893,2]
[422312026,1778813437000,-1381.60600346,0.00012893,2]
[422312027,1778813437000,-1491.56584984,0.00012893,2]
[422312025,1778813437000,-581.55,0.00012893,2]
[422312041,1778813438000,-500.0,0.00013574,2]
[422312037,1778813438000,-200.0,0.0001304,2]
[422312046,1778813438000,-500.0,0.00013574,2]
[422312036,1778813438000,-200.0,0.00013032,2]
[422312035,1778813438000,-467.334161,0.00012966,2]
[422312029,1778813438000,-2517.79,0.00012893,2]
[422312043,1778813438000,-500.0,0.00013574,2]
[422312033,1778813438000,-150.0,0.00012895,2]
[422312034,1778813438000,-150.0,0.00012916,2]
[422312031,1778813438000,-9999.99,0.00012893,2]
[422312030,1778813438000,-632.54,0.00012893,2]
[422312028,1778813438000,-4213.79579812,0.00012893,2]
[422312032,1778813438000,-299.99,0.00012893,2]
[422312042,1778813438000,-500.0,0.00013574,2]
[422312057,1778813438000,-500.0,0.00013574,2]
[422312038,1778813438000,-453.43,0.00013145,2]
[422312069,1778813438000,-1015.54880557,0.00013575,2]
[422312066,1778813438000,-480.58491443,0.00013575,2]
[422312059,1778813438000,-500.0,0.00013574,2]
[422312061,1778813438000,-4519.41508557,0.00013575,2]
[422312054,1778813438000,-500.0,0.00013574,2]
[422312055,1778813438000,-500.0,0.00013574,2]
[422312044,1778813438000,-500.0,0.00013574,2]
[422312051,1778813438000,-500.0,0.00013574,2]
[422312052,1778813438000,-377.24786679,0.00013574,2]
[422312048,1778813438000,-500.0,0.00013574,2]
[422312045,1778813438000,-500.0,0.00013574,2]
[422312040,1778813438000,-7997.91947083,0.00013498,2]
[422312039,1778813438000,-453.43,0.00013465,2]
[422312053,1778813438000,-500.0,0.00013574,2]
[422312093,1778813440000,-2047.69306052,0.00013599,2]
[422312091,1778813440000,-1498984.45119443,0.00013575,2]
[422312092,1778813440000,-556.5095,0.00013575,2]
[422312098,1778813440000,-430.82365375,0.00013674,2]
[422312094,1778813440000,-1004.05171788,0.00013674,2]
[422312096,1778813440000,-160.329,0.00013674,2]
[422312099,1778813440000,-500.0,0.00013674,2]
[422312097,1778813440000,-500.0,0.00013674,2]
[422312101,1778813440000,-643.67782404,0.00013674,2]
[422312100,1778813440000,-500.0,0.00013674,2]
[422312102,1778813440000,-1096043.51457575,0.00013675,2]
[422312095,1778813440000,-1271.994,0.00013674,2]
[422312113,1778813443000,-673431.28567894,0.00013675,2]
[422312111,1778813443000,-136.9150535,0.00013675,2]
[422312112,1778813443000,-393175.85205814,0.00013675,2]
[422312110,1778813443000,-150.0,0.00013555,2]
[422312115,1778813445000,-1673.61150362,0.00013675,2]
[422312121,1778813446000,-272.36759529,0.00013675,2]
[422312128,1778813447000,500.0,0.00027397,120]
[422312129,1778813478000,-744.66122058,0.00013475,2]
[422312130,1778813494000,-212.72597992,0.00013475,2]
[422312131,1778813524000,4268.6,0.00027397,120]
[422312132,1778813693000,288.97396812,0.00026765,120]
[422312133,1778813751000,152.0,0.00027276,120]
[422312136,1778813756000,-171.08,0.00013322,2]
[422312137,1778813756000,-19856.597,0.00013375,2]
[422312134,1778813756000,-160.329,0.00013206,2]
[422312135,1778813756000,-1271.994,0.00013206,2]
[422312138,1778813774000,208.28559027,8.034e-05,30]
[422312139,1778813897000,215.53,6.602e-05,2]
[422312140,1778813898000,215.53,6.936e-05,2]
[422312141,1778813898000,215.53,7.27e-05,2]
[422312144,1778813898000,215.53,8.271e-05,2]
[422312143,1778813898000,215.53,7.937e-05,2]
[422312142,1778813898000,215.53,7.603e-05,2]
[422312146,1778813964000,500.0,0.00013674,8]
[422312145,1778813964000,500.0,0.00013574,7]
[422312147,1778813965000,500.0,0.00013674,9]
[422312148,1778814049000,152.0,0.00013613,7]
[422312150,1778814050000,152.0,0.00013641,7]
[422312149,1778814050000,152.0,0.00013613,7]
[422312152,1778814051000,152.0,8.036e-05,30]
[422312151,1778814051000,152.0,0.00013668,7]
[422312153,1778814052000,152.0,8.036e-05,30]
[422312154,1778814053000,152.0,0.00027111,120]
[422312159,1778814352000,152.0,0.00013641,7]
[422312158,1778814352000,152.0,0.00013613,7]
[422312160,1778814353000,152.0,8.036e-05,30]
[422312171,1778814631000,-215.53,0.00010274,2]
[422312170,1778814631000,-215.53,9.94e-05,2]
[422312167,1778814631000,-52.55251749,8.939e-05,2]
[422312168,1778814631000,-215.53,9.273e-05,2]
[422312165,1778814631000,-215.53,8.605e-05,2]
[422312166,1778814631000,-162.97748251,8.939e-05,2]
[422312169,1778814631000,-215.53,9.606e-05,2]
[422312212,1778814632000,-500.61456631,0.00013,2]
[422312214,1778814632000,-4148.63985514,0.00013,5]
[422312208,1778814632000,-215.53,0.00012945,2]
[422312210,1778814632000,-2000.0,0.00012999,2]
[422312191,1778814632000,-645.09219784,0.000114,2]
[422312205,1778814632000,-215.53,0.00012611,2]
[422312218,1778814632000,-6998.17953702,0.00013375,2]
[422312195,1778814632000,-487.33,0.00011651,2]
[422312203,1778814632000,-215.53,0.00012277,2]
[422312216,1778814632000,-172.78457871,0.00013375,2]
[422312223,1778814632000,-5000.0,0.00013375,2]
[422312222,1778814632000,-2000.0,0.00013375,2]
[422312225,1778814632000,-556.5095,0.00013375,2]
[422312192,1778814632000,-2000.0,0.00011554,2]
[422312237,1778814632000,-500.0,0.00013474,2]
[422312226,1778814632000,-291.05719326,0.00013388,2]
[422312228,1778814632000,-670.19509854,0.00013388,2]
[422312241,1778814632000,-500.0,0.00013474,2]
[422312230,1778814632000,-2047.69306052,0.00013408,2]
[422312238,1778814632000,-500.0,0.00013474,2]
[422312239,1778814632000,-500.0,0.00013474,2]
[422312240,1778814632000,-500.0,0.00013474,2]
[422312220,1778814632000,-13319.0523,0.00013375,2]
[422312196,1778814632000,-250.73,0.00011735,2]
[422312193,1778814632000,-200.0,0.00011554,2]
[422312190,1778814632000,-150.0,0.00011378,2]
[422312234,1778814632000,-500.0,0.00013474,2]
[422312172,1778814632000,-215.53,0.00010608,2]
[422312175,1778814632000,-201.15923283,0.00010756,2]
[422312173,1778814632000,-215.33185999,0.000107,2]
[422312174,1778814632000,-251.23438421,0.00010731,2]
[422312177,1778814632000,-584.49047694,0.00011,2]
[422312176,1778814632000,-215.53,0.00010942,2]
[422312187,1778814632000,-1163.35,0.00011281,2]
[422312179,1778814632000,-1200.0,0.0001128,2]
[422312178,1778814632000,-215.53,0.00011276,2]
[422312194,1778814632000,-215.53,0.00011609,2]
[422312181,1778814632000,-15665.06,0.00011281,2]
[422312180,1778814632000,-340.59,0.00011281,2]
[422312184,1778814632000,-701.32,0.00011281,2]
[422312183,1778814632000,-1150.83,0.00011281,2]
[422312185,1778814632000,-8502.54,0.00011281,2]
[422312186,1778814632000,-150.99,0.00011281,2]
[422312188,1778814632000,-299.99,0.00011281,2]
[422312189,1778814632000,-999.99,0.00011281,2]
[422312199,1778814632000,-150.0,0.00012086,2]
[422312201,1778814632000,-1004.05171788,0.00012086,2]
[422312197,1778814632000,-215.53,0.00011943,2]
[422312182,1778814632000,-9999.99,0.00011281,2]
[422312232,1778814632000,-351.66057178,0.00013465,2]
[422312256,1778814632000,-500.0,0.00013474,2]
[422312235,1778814632000,-500.0,0.00013474,2]
[422312270,1778814632000,-500.0,0.00013474,2]
[422312271,1778814632000,-275.31922847,0.00013474,2]
[422312274,1778814632000,-500.0,0.00013474,2]
[422312277,1778814632000,-500.0,0.00013474,2]
[422312275,1778814632000,-650.0,0.00013474,2]
[422312273,1778814632000,-500.0,0.00013474,2]
[422312276,1778814632000,-500.0,0.00013474,2]
[422312266,1778814632000,-500.0,0.00013474,2]
[422312272,1778814632000,-500.0,0.00013474,2]
[422312279,1778814632000,-500.0,0.00013474,2]
[422312268,1778814632000,-500.0,0.00013474,2]
[422312281,1778814632000,-500.0,0.00013474,2]
[422312278,1778814632000,-500.0,0.00013474,2]
[422312286,1778814632000,-500.0,0.00013474,2]
[422312282,1778814632000,-500.0,0.00013474,2]
[422312285,1778814632000,-500.0,0.00013474,2]
[422312236,1778814632000,-500.0,0.00013474,2]
[422312287,1778814632000,-1193484.66832901,0.00013475,2]
[422312284,1778814632000,-500.0,0.00013474,2]
[422312289,1778814632000,-651.71937646,0.00013475,2]
[422312290,1778814632000,-706.95471448,0.00013475,2]
[422312288,1778814632000,-1283.59230351,0.00013475,2]
[422312280,1778814632000,-500.0,0.00013474,2]
[422312269,1778814632000,-500.0,0.00013474,2]
[422312283,1778814632000,-500.0,0.00013474,2]
[422312265,1778814632000,-500.0,0.00013474,2]
[422312267,1778814632000,-500.0,0.00013474,2]
[422312242,1778814632000,-237.72478668,0.00013474,2]
[422312244,1778814632000,-500.0,0.00013474,2]
[422312245,1778814632000,-500.0,0.00013474,2]
[422312248,1778814632000,-500.0,0.00013474,2]
[422312253,1778814632000,-500.0,0.00013474,2]
[422312249,1778814632000,-500.0,0.00013474,2]
[422312251,1778814632000,-500.0,0.00013474,2]
[422312252,1778814632000,-500.0,0.00013474,2]
[422312246,1778814632000,-500.0,0.00013474,2]
[422312243,1778814632000,-500.0,0.00013474,2]
[422312247,1778814632000,-500.0,0.00013474,2]
[422312255,1778814632000,-500.0,0.00013474,2]
[422312250,1778814632000,-500.0,0.00013474,2]
[422312262,1778814632000,-401.33607943,0.00013474,2]
[422312263,1778814632000,-500.0,0.00013474,2]
[422312260,1778814632000,-500.0,0.00013474,2]
[422312259,1778814632000,-500.0,0.00013474,2]
[422312258,1778814632000,-300.0,0.00013474,2]
[422312257,1778814632000,-500.0,0.00013474,2]
[422312254,1778814632000,-500.0,0.00013474,2]
[422312261,1778814632000,-500.0,0.00013474,2]
[422312264,1778814632000,-500.0,0.00013474,2]
[422312319,1778814640000,-500.0,0.00013629,2]
[422312324,1778814640000,-500.0,0.00013629,2]
[422312322,1778814640000,-500.0,0.00013629,2]
[422312332,1778814640000,-566120.70061939,0.0001363,2]
[422312321,1778814640000,-500.0,0.00013629,2]
[422312320,1778814640000,-193.45719492,0.00013629,2]
[422312323,1778814640000,-500.0,0.00013629,2]
[422312325,1778814640000,-230.82365375,0.00013629,2]
[422312330,1778814640000,-689.1777719,0.0001363,2]
[422312326,1778814640000,-500.0,0.00013629,2]
[422312331,1778814640000,-146933.56318,0.0001363,2]
[422312328,1778814640000,-162.87232468,0.00013629,2]
[422312334,1778814640000,-422.89223244,0.0001363,2]
[422312335,1778814640000,-2492.104632,0.0001363,2]
[422312316,1778814640000,-533.8408192,0.00013628,2]
[422312336,1778814640000,-616.0,0.0001363,2]
[422312333,1778814640000,-12592.49871891,0.0001363,2]
[422312313,1778814640000,-500.0,0.00013574,6]
[422312305,1778814640000,-150.0,0.00013488,2]
[422312317,1778814640000,-3825.3751267,0.00013628,2]
[422312340,1778814640000,-470882.16633168,0.0001363,2]
[422312300,1778814640000,-20306.0,0.00013475,2]
[422312301,1778814640000,-269.58660906,0.00013475,2]
[422312298,1778814640000,-2965.4971206,0.00012248,2]
[422312299,1778814640000,-284.1328794,0.00013475,2]
[422312302,1778814640000,-3798.091139,0.00013475,2]
[422312304,1778814640000,-277996.08347201,0.00013475,2]
[422312308,1778814640000,-670.19509847,0.00013556,2]
[422312306,1778814640000,-181.37,0.00013508,2]
[422312307,1778814640000,-23981.39295187,0.0001354,2]
[422312303,1778814640000,-1219.17117707,0.00013475,2]
[422312309,1778814640000,-500.0,0.00013574,2]
[422312311,1778814640000,-500.0,0.00013574,4]
[422312310,1778814640000,-500.0,0.00013574,3]
[422312315,1778814640000,-63350.8119658,0.00013628,2]
[422312314,1778814640000,-6998.17953695,0.00013593,2]
[422312318,1778814640000,-6140.7496163,0.00013628,2]
[422312312,1778814640000,-500.0,0.00013574,5]
[422312338,1778814640000,-1287.1,0.0001363,2]
[422312339,1778814640000,-738.22903426,0.0001363,2]
[422312399,1778814640000,-500.0,0.00013698,2]
[422312384,1778814640000,-500.0,0.00013698,2]
[422312391,1778814640000,-500.0,0.00013698,2]
[422312389,1778814640000,-500.0,0.00013698,2]
[422312393,1778814640000,-500.0,0.00013698,2]
[422312395,1778814640000,-500.0,0.00013698,2]
[422312407,1778814640000,-500.0,0.00013698,2]
[422312401,1778814640000,-500.0,0.00013698,2]
[422312403,1778814640000,-500.0,0.00013698,2]
[422312405,1778814640000,-500.0,0.00013698,2]
[422312397,1778814640000,-500.0,0.00013698,2]
[422312410,1778814640000,-500.0,0.00013698,2]
[422312412,1778814640000,-500.0,0.00013698,2]
[422312416,1778814640000,-500.0,0.00013698,2]
[422312418,1778814640000,-500.0,0.00013698,2]
[422312414,1778814640000,-500.0,0.00013698,2]
[422312420,1778814640000,-618.44306904,0.00013698,2]
[422312337,1778814640000,-81145.00000002,0.0001363,2]
[422312383,1778814640000,-500.0,0.00013698,2]
[422312373,1778814640000,-500.0,0.00013698,2]
[422312387,1778814640000,-500.0,0.00013698,2]
[422312371,1778814640000,-500.0,0.00013698,2]
[422312341,1778814640000,-394.19426181,0.00013675,2]
[422312343,1778814640000,-500.0,0.00013698,2]
[422312342,1778814640000,-500.0,0.00013698,2]
[422312362,1778814640000,-500.0,0.00013698,2]
[422312348,1778814640000,-500.0,0.00013698,2]
[422312375,1778814640000,-500.0,0.00013698,2]
[422312354,1778814640000,-500.0,0.00013698,2]
[422312360,1778814640000,-500.0,0.00013698,2]
[422312358,1778814640000,-500.0,0.00013698,2]
[422312350,1778814640000,-500.0,0.00013698,2]
[422312364,1778814640000,-500.0,0.00013698,2]
[422312345,1778814640000,-500.0,0.00013698,2]
[422312352,1778814640000,-500.0,0.00013698,2]
[422312376,1778814640000,-500.0,0.00013698,2]
[422312366,1778814640000,-500.0,0.00013698,2]
[422312378,1778814640000,-500.0,0.00013698,2]
[422312369,1778814640000,-500.0,0.00013698,2]
[422312356,1778814640000,-500.0,0.00013698,2]
[422312380,1778814640000,-500.0,0.00013698,2]
[422312482,1778814641000,-500.0,0.00013698,2]
[422312479,1778814641000,-588.94,0.00013698,2]
[422312480,1778814641000,-588.94,0.00013698,2]
[422312475,1778814641000,-588.94,0.00013698,2]
[422312470,1778814641000,-588.94,0.00013698,2]
[422312474,1778814641000,-588.94,0.00013698,2]
[422312468,1778814641000,-588.94,0.00013698,2]
[422312466,1778814641000,-1031.52,0.00013698,2]
[422312477,1778814641000,-588.94,0.00013698,2]
[422312469,1778814641000,-588.94,0.00013698,2]
[422312473,1778814641000,-588.94,0.00013698,2]
[422312476,1778814641000,-588.94,0.00013698,2]
[422312488,1778814641000,-501.26461734,0.00013698,2]
[422312478,1778814641000,-588.94,0.00013698,2]
[422312484,1778814641000,-500.0,0.00013698,2]
[422312483,1778814641000,-500.0,0.00013698,2]
[422312486,1778814641000,-399.23550685,0.00013698,2]
[422312485,1778814641000,-500.0,0.00013698,2]
[422312487,1778814641000,-500.0,0.00013698,2]
[422312493,1778814641000,-500.0,0.00013698,2]
[422312495,1778814641000,-513.00655054,0.00013698,2]
[422312494,1778814641000,-500.0,0.00013698,2]
[422312496,1778814641000,-500.0,0.00013698,2]
[422312497,1778814641000,-587.47438535,0.00013698,2]
[422312471,1778814641000,-588.94,0.00013698,2]
[422312481,1778814641000,-500.0,0.00013698,2]
[422312467,1778814641000,-1031.52,0.00013698,2]
[422312428,1778814641000,-500.0,0.00013698,2]
[422312464,1778814641000,-1031.52,0.00013698,2]
[422312422,1778814641000,-500.0,0.00013698,2]
[422312431,1778814641000,-500.0,0.00013698,2]
[422312437,1778814641000,-500.0,0.00013698,2]
[422312433,1778814641000,-500.0,0.00013698,2]
[422312435,1778814641000,-500.0,0.00013698,2]
[422312424,1778814641000,-500.0,0.00013698,2]
[422312426,1778814641000,-500.0,0.00013698,2]
[422312498,1778814641000,-204.14689797,0.00013698,2]
[422312439,1778814641000,-500.0,0.00013698,2]
[422312443,1778814641000,-500.0,0.00013698,2]
[422312441,1778814641000,-500.0,0.00013698,2]
[422312445,1778814641000,-500.0,0.00013698,2]
[422312451,1778814641000,-499.81048929,0.00013698,2]
[422312448,1778814641000,-500.0,0.00013698,2]
[422312453,1778814641000,-1031.52,0.00013698,2]
[422312450,1778814641000,-500.0,0.00013698,2]
[422312455,1778814641000,-1031.52,0.00013698,2]